fUST/lending_fUST_20250317
["ID","MTS","AMOUNT","RATE_DAILY","PERIOD"]
[356260138,1742149847975,-524.20886762,8.219e-05,2]
[356260139,1742149847985,-500.0,8.219e-05,2]
[356260140,1742149847995,-500.0,8.219e-05,2]
[356260141,1742149848004,-500.0,8.219e-05,2]
[356260142,1742149848014,-500.0,8.219e-05,2]
[356260143,1742149848023,-500.0,8.219e-05,2]
[356260144,1742149848033,-500.0,8.219e-05,2]
[356260145,1742149848043,-500.0,8.219e-05,2]
[356260146,1742149848052,-500.0,8.219e-05,2]
[356260147,1742149848062,-500.0,8.219e-05,2]
[356260148,1742149848072,-500.0,8.219e-05,2]
[356260149,1742149848082,-500.0,8.219e-05,2]
[356260150,1742149848092,-500.0,8.219e-05,2]
[356260151,1742149848103,-510.27213637,8.219e-05,2]
[356260152,1742149848112,-500.0,8.219e-05,2]
[356260153,1742149848122,-500.0,8.219e-05,2]
[356260154,1742149848132,-500.0,8.219e-05,2]
[356260155,1742149848142,-500.0,8.219e-05,2]
[356260156,1742149848151,-500.0,8.219e-05,2]
[356260157,1742149848161,-2863.91,8.219e-05,2]
[356260158,1742149848170,-500.0,8.219e-05,2]
[356260159,1742149848183,-6470.41,8.219e-05,2]
[356260160,1742149848192,-500.0,8.219e-05,2]
[356260161,1742149848202,-749.39,8.219e-05,2]
[356260162,1742149848212,-501.35344598,8.219e-05,2]
[356260163,1742149848222,-500.0,8.219e-05,2]
[356260164,1742149848231,-500.0,8.219e-05,2]
[356260165,1742149848241,-500.0,8.219e-05,2]
[356260166,1742149848251,-727.12,8.219e-05,2]
[356260167,1742149848260,-521.36792255,8.219e-05,2]
[356260168,1742149848270,-500.0,8.219e-05,2]
[356260169,1742149848279,-500.0,8.219e-05,2]
[356260170,1742149848288,-500.0,8.219e-05,2]
[356260171,1742149848298,-500.0,8.219e-05,2]
[356260172,1742149848307,-500.0,8.219e-05,2]
[356260173,1742149848318,-500.0,8.219e-05,2]
[356260174,1742149848328,-500.0,8.219e-05,2]
[356260175,1742149848338,-786.79,8.219e-05,2]
[356260176,1742149848348,-500.0,8.219e-05,2]
[356260177,1742149848358,-500.0,8.219e-05,2]
[356260178,1742149848368,-500.0,8.219e-05,2]
[356260179,1742149848378,-500.0,8.219e-05,2]
[356260180,1742149848388,-500.0,8.219e-05,2]
[356260181,1742149848398,-501.55549595,8.219e-05,2]
[356260182,1742149848408,-500.0,8.219e-05,2]
[356260183,1742149848418,-4725.19,8.219e-05,2]
[356260184,1742149848428,-2399.61,8.219e-05,2]
[356260185,1742149848438,-511.58043631,8.219e-05,2]
[356260186,1742149848448,-500.0,8.219e-05,2]
[356260187,1742149848457,-2188.14,8.219e-05,2]
[356260188,1742149848467,-567.44,8.219e-05,2]
[356260189,1742149848478,-500.0,8.219e-05,2]
[356260190,1742149848488,-500.0,8.219e-05,2]
[356260191,1742149848498,-500.0,8.219e-05,2]
[356260192,1742149848508,-500.0,8.219e-05,2]
[356260193,1742149848517,-843.37,8.219e-05,2]
[356260194,1742149848527,-500.0,8.219e-05,2]
[356260195,1742149848537,-500.0,8.219e-05,2]
[356260196,1742149848548,-500.0,8.219e-05,2]
[356260197,1742149848558,-1218.43,8.219e-05,2]
[356260198,1742149848567,-1218.43,8.219e-05,2]
[356260199,1742149848577,-1218.43,8.219e-05,2]
[356260200,1742149848587,-500.0,8.219e-05,2]
[356260201,1742149848597,-1218.43,8.219e-05,2]
[356260202,1742149848607,-1218.43,8.219e-05,2]
[356260203,1742149848616,-1218.43,8.219e-05,2]
[356260204,1742149848626,-1218.43,8.219e-05,2]
[356260205,1742149848635,-500.0,8.219e-05,2]
[356260206,1742149848645,-1218.43,8.219e-05,2]
[356260207,1742149848655,-1218.43,8.219e-05,2]
[356260208,1742149848665,-1201.15007824,8.219e-05,2]
[356260209,1742149848870,-17.27992176,8.219e-05,2]
[356260210,1742149848880,-500.0,8.219e-05,2]
[356260211,1742149848890,-893.94981644,8.219e-05,2]
[356260212,1742149848915,-324.48018356,8.219e-05,2]
[356260213,1742149848926,-1098.27828746,8.219e-05,2]
[356260214,1742149849004,-120.15171254,8.219e-05,2]
[356260215,1742149849015,-1218.43,8.219e-05,2]
[356260216,1742149849024,-1218.43,8.219e-05,2]
[356260217,1742149849034,-1218.43,8.219e-05,2]
[356260218,1742149849044,-1218.43,8.219e-05,2]
[356260219,1742149849054,-1218.43,8.219e-05,2]
[356260220,1742149849064,-1218.43,8.219e-05,2]
[356260221,1742149849074,-1064.76301224,8.219e-05,2]
[356260225,1742150829103,-300.0,8.117e-05,2]
[356260226,1742150829129,-15.84674212,8.118e-05,2]
[356260227,1742150847089,-484.15325788,8.118e-05,2]
[356260228,1742150847113,-500.0,8.118e-05,2]
[356260229,1742150847136,-500.0,8.118e-05,2]
[356260230,1742150847158,-424.39126988,8.118e-05,2]
[356260231,1742150858857,356.114436,7.397e-05,2]
[356260249,1742151032417,-216.47221503,8.118e-05,2]
[356260250,1742151032427,-237.87372054,8.118e-05,2]
[356260251,1742151032436,-42380.89721714,8.119e-05,2]
[356260252,1742151032445,-500.0,8.193e-05,2]
[356260253,1742151032454,-500.0,8.193e-05,2]
[356260254,1742151032464,-500.0,8.193e-05,2]
[356260255,1742151032473,-500.0,8.193e-05,2]
[356260256,1742151032483,-500.57260215,8.193e-05,2]
[356260257,1742151032493,-500.0,8.193e-05,2]
[356260258,1742151032503,-500.0,8.193e-05,2]
[356260259,1742151032513,-500.0,8.193e-05,2]
[356260260,1742151032523,-500.0,8.193e-05,2]
[356260261,1742151032533,-500.0,8.193e-05,2]
[356260262,1742151032542,-500.0,8.193e-05,2]
[356260263,1742151032551,-500.0,8.193e-05,2]
[356260264,1742151032561,-500.0,8.193e-05,2]
[356260265,1742151032570,-1155.54584456,8.214e-05,2]
[356260266,1742151032579,-542.96985615,8.218e-05,2]
[356260267,1742151032588,-500.0,8.218e-05,2]
[356260268,1742151032597,-255.11919446,8.218e-05,2]
[356260269,1742151032607,-501.72628447,8.219e-05,2]
[356260270,1742151032618,-501.98807863,8.219e-05,2]
[356260271,1742151032627,-500.0,8.219e-05,2]
[356260272,1742151032636,-500.0,8.219e-05,2]
[356260273,1742151032646,-500.0,8.219e-05,2]
[356260274,1742151032655,-312.85980725,8.219e-05,2]
[356260275,1742151032664,-500.0,8.219e-05,2]
[356260276,1742151032674,-500.0,8.219e-05,2]
[356260277,1742151032683,-500.0,8.219e-05,2]
[356260278,1742151032692,-500.0,8.219e-05,2]
[356260280,1742151032701,-500.0,8.219e-05,2]
[356260282,1742151032710,-500.0,8.219e-05,2]
[356260284,1742151032719,-500.0,8.219e-05,2]
[356260285,1742151032729,-378.14308861,8.219e-05,2]
[356260288,1742151032739,-167.57315317,8.219e-05,2]
[356260290,1742151032749,-500.0,8.219e-05,2]
[356260292,1742151032758,-183.5,8.219e-05,2]
[356260294,1742151032768,-500.0,8.219e-05,2]
[356260295,1742151032778,-512.09985993,8.219e-05,2]
[356260297,1742151032788,-526.33,8.219e-05,2]
[356260299,1742151032797,-500.0,8.219e-05,2]
[356260301,1742151032807,-500.0,8.219e-05,2]
[356260303,1742151032816,-500.0,8.219e-05,2]
[356260305,1742151032826,-500.0,8.219e-05,2]
[356260307,1742151032835,-500.0,8.219e-05,2]
[356260309,1742151032844,-500.0,8.219e-05,2]
[356260311,1742151032854,-500.0,8.219e-05,2]
[356260313,1742151032867,-500.0,8.219e-05,2]
[356260315,1742151032877,-500.0,8.219e-05,2]
[356260317,1742151032887,-500.0,8.219e-05,2]
[356260319,1742151032897,-500.0,8.219e-05,2]
[356260321,1742151032907,-500.0,8.219e-05,2]
[356260323,1742151032916,-500.0,8.219e-05,2]
[356260325,1742151032926,-616.16,8.219e-05,2]
[356260327,1742151032935,-500.0,8.219e-05,2]
[356260329,1742151032945,-445.94145535,8.219e-05,2]
[356260331,1742151032954,-500.0,8.219e-05,2]
[356260332,1742151032964,-500.0,8.219e-05,2]
[356260333,1742151032974,-500.0,8.219e-05,2]
[356260334,1742151032983,-500.0,8.219e-05,2]
[356260335,1742151032992,-500.0,8.219e-05,2]
[356260336,1742151033002,-500.0,8.219e-05,2]
[356260337,1742151033011,-500.0,8.219e-05,2]
[356260338,1742151033020,-379.41,8.219e-05,2]
[356260339,1742151033029,-500.0,8.219e-05,2]
[356260340,1742151033039,-500.0,8.219e-05,2]
[356260341,1742151033049,-503.37887939,8.219e-05,2]
[356260342,1742151033059,-500.0,8.219e-05,2]
[356260343,1742151033068,-182.44802892,8.219e-05,2]
[356260344,1742151033077,-500.0,8.219e-05,2]
[356260345,1742151033094,-500.0,8.219e-05,2]
[356260346,1742151033103,-503.4026585,8.219e-05,2]
[356260347,1742151033113,-512.94412046,8.219e-05,2]
[356260348,1742151033125,-500.0,8.219e-05,2]
[356260349,1742151033135,-506.81571065,8.219e-05,2]
[356260350,1742151033144,-500.0,8.219e-05,2]
[356260351,1742151033155,-500.0,8.219e-05,2]
[356260352,1742151033164,-500.0,8.219e-05,2]
[356260353,1742151033187,-513.80100385,8.219e-05,2]
[356260354,1742151033198,-500.0,8.219e-05,2]
[356260355,1742151033208,-503.60571475,8.219e-05,2]
[356260356,1742151033219,-500.0,8.219e-05,2]
[356260357,1742151033227,-445.46111987,8.219e-05,2]
[356260358,1742151033240,-500.0,8.219e-05,2]
[356260359,1742151033251,-500.0,8.219e-05,2]
[356260360,1742151033261,-500.0,8.219e-05,2]
[356260361,1742151033270,-500.0,8.219e-05,2]
[356260362,1742151033281,-320.75379066,8.219e-05,2]
[356260363,1742151033290,-504.17301784,8.219e-05,2]
[356260364,1742151033300,-457.25047209,8.219e-05,2]
[356260365,1742151033311,-500.0,8.219e-05,2]
[356260366,1742151033321,-500.0,8.219e-05,2]
[356260367,1742151033330,-500.0,8.219e-05,2]
[356260368,1742151033339,-500.0,8.219e-05,2]
[356260369,1742151033349,-500.0,8.219e-05,2]
[356260370,1742151033359,-500.0,8.219e-05,2]
[356260371,1742151033371,-500.0,8.219e-05,2]
[356260372,1742151033382,-500.0,8.219e-05,2]
[356260373,1742151033392,-507.25428577,8.219e-05,2]
[356260374,1742151033402,-500.0,8.219e-05,2]
[356260375,1742151033412,-500.0,8.219e-05,2]
[356260376,1742151033422,-511.89531182,8.219e-05,2]
[356260377,1742151033433,-500.0,8.219e-05,2]
[356260378,1742151033444,-500.0,8.219e-05,2]
[356260379,1742151033454,-175.21914718,8.219e-05,2]
[356260380,1742151033464,-500.0,8.219e-05,2]
[356260381,1742151033475,-500.0,8.219e-05,2]
[356260382,1742151033484,-500.0,8.219e-05,2]
[356260383,1742151033495,-500.0,8.219e-05,2]
[356260384,1742151033505,-500.0,8.219e-05,2]
[356260385,1742151033515,-500.0,8.219e-05,2]
[356260386,1742151033525,-500.0,8.219e-05,2]
[356260387,1742151033535,-500.0,8.219e-05,2]
[356260388,1742151033546,-500.0,8.219e-05,2]
[356260389,1742151033557,-514.99446122,8.219e-05,2]
[356260390,1742151033568,-565.67,8.219e-05,2]
[356260391,1742151033578,-507.05567011,8.219e-05,2]
[356260392,1742151033589,-500.0,8.219e-05,2]
[356260393,1742151033599,-500.0,8.219e-05,2]
[356260394,1742151033610,-500.0,8.219e-05,2]
[356260395,1742151033621,-573.02,8.219e-05,2]
[356260396,1742151033630,-514.27877309,8.219e-05,2]
[356260397,1742151033641,-500.0,8.219e-05,2]
[356260398,1742151033650,-506.99634675,8.219e-05,2]
[356260399,1742151033660,-500.0,8.219e-05,2]
[356260400,1742151033669,-500.0,8.219e-05,2]
[356260401,1742151033679,-500.0,8.219e-05,2]
[356260402,1742151033689,-500.0,8.219e-05,2]
[356260403,1742151033698,-500.0,8.219e-05,2]
[356260404,1742151033708,-500.0,8.219e-05,2]
[356260405,1742151033718,-500.0,8.219e-05,2]
[356260406,1742151033728,-500.0,8.219e-05,2]
[356260407,1742151033737,-500.0,8.219e-05,2]
[356260408,1742151033747,-500.0,8.219e-05,2]
[356260409,1742151033757,-500.0,8.219e-05,2]
[356260410,1742151033766,-500.0,8.219e-05,2]
[356260411,1742151033777,-504.3560346,8.219e-05,2]
[356260412,1742151033787,-500.0,8.219e-05,2]
[356260413,1742151033800,-516.05892753,8.219e-05,2]
[356260414,1742151033809,-500.0,8.219e-05,2]
[356260415,1742151033818,-500.0,8.219e-05,2]
[356260416,1742151033827,-501.26389854,8.219e-05,2]
[356260417,1742151033837,-500.0,8.219e-05,2]
[356260418,1742151033847,-500.0,8.219e-05,2]
[356260419,1742151033856,-505.82274912,8.219e-05,2]
[356260420,1742151033866,-500.0,8.219e-05,2]
[356260421,1742151033876,-500.0,8.219e-05,2]
[356260422,1742151033886,-504.42491815,8.219e-05,2]
[356260423,1742151033896,-500.0,8.219e-05,2]
[356260424,1742151033906,-503.13420309,8.219e-05,2]
[356260425,1742151033915,-504.94238345,8.219e-05,2]
[356260426,1742151033925,-516.76389294,8.219e-05,2]
[356260427,1742151033935,-500.0,8.219e-05,2]
[356260428,1742151033944,-500.0,8.219e-05,2]
[356260429,1742151033954,-500.0,8.219e-05,2]
[356260430,1742151033964,-500.0,8.219e-05,2]
[356260431,1742151033974,-505.61328746,8.219e-05,2]
[356260432,1742151033983,-513.3334398,8.219e-05,2]
[356260433,1742151033993,-500.0,8.219e-05,2]
[356260434,1742151034003,-500.0,8.219e-05,2]
[356260435,1742151034014,-500.0,8.219e-05,2]
[356260436,1742151034024,-500.0,8.219e-05,2]
[356260437,1742151034035,-500.0,8.219e-05,2]
[356260438,1742151034045,-500.0,8.219e-05,2]
[356260439,1742151034055,-500.0,8.219e-05,2]
[356260440,1742151034064,-156.91189228,8.219e-05,2]
[356260441,1742151034074,-500.0,8.219e-05,2]
[356260442,1742151034086,-500.0,8.219e-05,2]
[356260443,1742151034096,-3503.99,8.219e-05,2]
[356260444,1742151034106,-510.10441341,8.219e-05,2]
[356260445,1742151034116,-500.0,8.219e-05,2]
[356260446,1742151034126,-500.0,8.219e-05,2]
[356260447,1742151034136,-503.69758713,8.219e-05,2]
[356260448,1742151034146,-500.0,8.219e-05,2]
[356260449,1742151034156,-500.0,8.219e-05,2]
[356260450,1742151034166,-340.30317655,8.219e-05,2]
[356260451,1742151034175,-516.97368188,8.219e-05,2]
[356260452,1742151034185,-503.49775419,8.219e-05,2]
[356260453,1742151034195,-500.0,8.219e-05,2]
[356260454,1742151034205,-1801.58,8.219e-05,2]
[356260455,1742151034214,-504.18805057,8.219e-05,2]
[356260456,1742151034224,-307.21,8.219e-05,2]
[356260457,1742151034233,-507.7609613,8.219e-05,2]
[356260458,1742151034246,-500.0,8.219e-05,2]
[356260459,1742151034255,-500.0,8.219e-05,2]
[356260460,1742151034265,-510.24553799,8.219e-05,2]
[356260461,1742151034275,-502.62240805,8.219e-05,2]
[356260462,1742151034285,-500.0,8.219e-05,2]
[356260463,1742151034295,-507.88994089,8.219e-05,2]
[356260464,1742151034304,-500.0,8.219e-05,2]
[356260465,1742151034314,-3128.2,8.219e-05,2]
[356260466,1742151034324,-500.0,8.219e-05,2]
[356260467,1742151034334,-501.29703497,8.219e-05,2]
[356260468,1742151034344,-501.13677246,8.219e-05,2]
[356260469,1742151034354,-510.87191502,8.219e-05,2]
[356260470,1742151034364,-500.0,8.219e-05,2]
[356260471,1742151034375,-500.0,8.219e-05,2]
[356260472,1742151034385,-1988.16,8.219e-05,2]
[356260473,1742151034396,-500.0,8.219e-05,2]
[356260474,1742151034406,-503.22606996,8.219e-05,2]
[356260475,1742151034416,-500.0,8.219e-05,2]
[356260476,1742151034426,-627.55255016,8.219e-05,2]
[356260477,1742151034436,-505.20207845,8.219e-05,2]
[356260478,1742151034446,-518.19919646,8.219e-05,2]
[356260479,1742151034456,-500.0,8.219e-05,2]
[356260480,1742151034466,-500.0,8.219e-05,2]
[356260481,1742151034477,-521.11447388,8.219e-05,2]
[356260482,1742151034487,-552.87264105,8.219e-05,2]
[356260483,1742151034497,-505.41978334,8.219e-05,2]
[356260484,1742151034507,-500.0,8.219e-05,2]
[356260485,1742151034517,-500.0,8.219e-05,2]
[356260486,1742151034527,-500.0,8.219e-05,2]
[356260487,1742151034537,-500.0,8.219e-05,2]
[356260488,1742151034546,-508.48124719,8.219e-05,2]
[356260489,1742151034557,-510.85524275,8.219e-05,2]
[356260490,1742151034566,-502.25670087,8.219e-05,2]
[356260491,1742151034576,-500.0,8.219e-05,2]
[356260492,1742151034586,-508.0785585,8.219e-05,2]
[356260493,1742151034596,-500.0,8.219e-05,2]
[356260494,1742151034606,-500.0,8.219e-05,2]
[356260495,1742151034616,-500.0,8.219e-05,2]
[356260496,1742151034861,-521.95409833,8.219e-05,2]
[356260497,1742151034872,-501.31336352,8.219e-05,2]
[356260498,1742151034883,-513.9926207,8.219e-05,2]
[356260499,1742151034893,-500.0,8.219e-05,2]
[356260500,1742151034903,-500.0,8.219e-05,2]
[356260501,1742151034913,-1323.53,8.219e-05,2]
[356260502,1742151034924,-509.21976705,8.219e-05,2]
[356260503,1742151034934,-447.10643545,8.219e-05,2]
[356260504,1742151034944,-500.0,8.219e-05,2]
[356260505,1742151034953,-500.0,8.219e-05,2]
[356260506,1742151034963,-500.0,8.219e-05,2]
[356260507,1742151034974,-500.0,8.219e-05,2]
[356260508,1742151034983,-3361.02,8.219e-05,2]
[356260509,1742151034993,-500.0,8.219e-05,2]
[356260510,1742151035002,-500.0,8.219e-05,2]
[356260511,1742151035012,-185.36,8.219e-05,2]
[356260512,1742151035021,-500.0,8.219e-05,2]
[356260513,1742151035030,-500.0,8.219e-05,2]
[356260514,1742151035040,-500.0,8.219e-05,2]
[356260515,1742151035050,-500.0,8.219e-05,2]
[356260516,1742151035060,-500.0,8.219e-05,2]
[356260517,1742151035078,-500.0,8.219e-05,2]
[356260518,1742151035096,-500.0,8.219e-05,2]
[356260519,1742151035106,-500.0,8.219e-05,2]
[356260520,1742151035117,-500.0,8.219e-05,2]
[356260521,1742151035126,-500.0,8.219e-05,2]
[356260522,1742151035138,-500.0,8.219e-05,2]
[356260523,1742151035147,-500.0,8.219e-05,2]
[356260524,1742151035157,-500.0,8.219e-05,2]
[356260525,1742151035167,-500.0,8.219e-05,2]
[356260526,1742151035180,-505.49626665,8.219e-05,2]
[356260527,1742151035190,-500.0,8.219e-05,2]
[356260528,1742151035199,-37.66404405,8.219e-05,2]
[356260529,1742151035227,-474.05352781,8.219e-05,2]
[356260530,1742151035237,-500.0,8.219e-05,2]
[356260531,1742151035246,-500.0,8.219e-05,2]
[356260532,1742151035256,-489.42593446,8.219e-05,2]
[356260954,1742151288153,10000.0,0.00015,120]
[356261166,1742151593432,1652.140343,7.178e-05,2]
[356261172,1742152038144,-300.0,8.117e-05,2]
[356261173,1742152038167,-4220.90227146,8.118e-05,7]
[356261174,1742152050076,-361.30680496,8.118e-05,7]
[356261175,1742152218291,24900.0,7.397e-05,2]
[356261228,1742152232541,-300.0,8.117e-05,2]
[356261230,1742152232552,-979.48873258,8.118e-05,7]
[356261232,1742152232561,-500.0,8.118e-05,2]
[356261234,1742152232571,-207.06397339,8.118e-05,2]
[356261236,1742152232580,-612.29532174,8.118e-05,2]
[356261238,1742152232590,-500.0,8.118e-05,2]
[356261240,1742152232599,-500.0,8.118e-05,2]
[356261242,1742152232608,-560.74658267,8.118e-05,2]
[356261244,1742152232618,-5139.75664274,8.119e-05,2]
[356261246,1742152232634,-134960.41401748,8.119e-05,2]
[356261249,1742152232649,-81899.82933978,8.119e-05,2]
[356261252,1742152232659,-4127.65305841,8.193e-05,2]
[356261255,1742152232668,-500.0,8.193e-05,2]
[356261258,1742152232678,-500.0,8.193e-05,2]
[356261260,1742152232687,-501.12466227,8.193e-05,2]
[356261262,1742152232696,-500.0,8.193e-05,2]
[356261264,1742152232705,-500.0,8.193e-05,2]
[356261266,1742152232715,-500.0,8.193e-05,2]
[356261268,1742152232725,-500.0,8.193e-05,2]
[356261270,1742152232734,-500.0,8.193e-05,2]
[356261271,1742152232743,-500.0,8.193e-05,2]
[356261273,1742152232752,-500.0,8.193e-05,2]
[356261274,1742152232762,-500.0,8.193e-05,2]
[356261275,1742152232771,-500.0,8.193e-05,2]
[356261276,1742152232781,-500.0,8.193e-05,2]
[356261277,1742152232790,-500.0,8.193e-05,2]
[356261278,1742152232799,-500.0,8.193e-05,2]
[356261279,1742152232809,-500.0,8.193e-05,2]
[356261280,1742152232818,-500.0,8.193e-05,2]
[356261281,1742152232827,-500.0,8.193e-05,2]
[356261282,1742152232836,-500.0,8.193e-05,2]
[356261283,1742152232846,-500.0,8.193e-05,2]
[356261284,1742152233042,-500.0,8.193e-05,2]
[356261285,1742152233052,-500.0,8.193e-05,2]
[356261286,1742152233062,-500.0,8.193e-05,2]
[356261287,1742152233072,-165.179322,8.193e-05,2]
[356261288,1742152233082,-165.17932198,8.206e-05,2]
[356261289,1742152233093,-212.59932872,8.218e-05,2]
[356261290,1742152233102,-500.0,8.219e-05,2]
[356261291,1742152233112,-500.92861038,8.219e-05,2]
[356261292,1742152233121,-500.0,8.219e-05,2]
[356261293,1742152233131,-504.00068672,8.219e-05,2]
[356261294,1742152233140,-501.62871989,8.219e-05,2]
[356261295,1742152233150,-500.0,8.219e-05,2]
[356261296,1742152233160,-500.0,8.219e-05,2]
[356261297,1742152233171,-502.786243,8.219e-05,2]
[356261298,1742152233181,-511.37181439,8.219e-05,2]
[356261299,1742152233191,-502.05708543,8.219e-05,2]
[356261300,1742152233201,-505.0466875,8.219e-05,2]
[356261301,1742152233211,-501.1935147,8.219e-05,2]
[356261302,1742152233221,-503.36120751,8.219e-05,2]
[356261303,1742152233230,-500.0,8.219e-05,2]
[356261304,1742152233240,-505.69441153,8.219e-05,2]
[356261305,1742152233250,-502.85277122,8.219e-05,2]
[356261306,1742152233259,-505.3001398,8.219e-05,2]
[356261307,1742152233269,-505.07885002,8.219e-05,2]
[356261308,1742152233279,-502.17720729,8.219e-05,2]
[356261309,1742152233288,-500.0,8.219e-05,2]
[356261310,1742152233298,-500.0,8.219e-05,2]
[356261311,1742152233307,-400.75216202,8.219e-05,2]
[356261312,1742152233317,-504.00759796,8.219e-05,2]
[356261313,1742152233327,-952.2,8.219e-05,2]
[356261314,1742152233336,-506.83251879,8.219e-05,2]
[356261315,1742152233346,-505.77904266,8.219e-05,2]
[356261316,1742152233356,-500.0,8.219e-05,2]
[356261317,1742152233366,-500.0,8.219e-05,2]
[356261318,1742152233376,-500.0,8.219e-05,2]
[356261319,1742152233386,-501.23941656,8.219e-05,2]
[356261320,1742152233395,-500.0,8.219e-05,2]
[356261321,1742152233405,-500.0,8.219e-05,2]
[356261322,1742152233415,-500.0,8.219e-05,2]
[356261323,1742152233425,-500.0,8.219e-05,2]
[356261324,1742152233435,-500.0,8.219e-05,2]
[356261325,1742152233444,-500.0,8.219e-05,2]
[356261326,1742152233454,-500.0,8.219e-05,2]
[356261327,1742152233463,-500.0,8.219e-05,2]
[356261328,1742152233473,-500.0,8.219e-05,2]
[356261329,1742152233486,-500.0,8.219e-05,2]
[356261330,1742152233496,-500.0,8.219e-05,2]
[356261331,1742152233507,-500.0,8.219e-05,2]
[356261332,1742152233518,-500.0,8.219e-05,2]
[356261333,1742152233530,-500.0,8.219e-05,2]
[356261334,1742152233540,-500.0,8.219e-05,2]
[356261335,1742152233550,-500.0,8.219e-05,2]
[356261336,1742152233560,-500.0,8.219e-05,2]
[356261337,1742152233571,-500.0,8.219e-05,2]
[356261338,1742152233580,-303.62096781,8.219e-05,2]
[356261339,1742152233590,-507.3793351,8.219e-05,2]
[356261340,1742152233600,-510.64805852,8.219e-05,2]
[356261341,1742152233610,-515.77819545,8.219e-05,2]
[356261342,1742152233620,-518.40800632,8.219e-05,2]
[356261343,1742152233630,-500.0,8.219e-05,2]
[356261344,1742152233639,-500.0,8.219e-05,2]
[356261345,1742152233649,-500.0,8.219e-05,2]
[356261346,1742152233659,-500.0,8.219e-05,2]
[356261347,1742152233669,-500.0,8.219e-05,2]
[356261348,1742152233679,-500.0,8.219e-05,2]
[356261349,1742152233689,-500.0,8.219e-05,2]
[356261350,1742152233698,-500.0,8.219e-05,2]
[356261351,1742152233708,-500.0,8.219e-05,2]
[356261352,1742152233718,-500.0,8.219e-05,2]
[356261353,1742152233727,-405.85938732,8.219e-05,2]
[356261354,1742152233737,-500.0,8.219e-05,2]
[356261355,1742152233745,-500.0,8.219e-05,2]
[356261356,1742152233755,-520.29161285,8.219e-05,2]
[356261357,1742152233764,-500.0,8.219e-05,2]
[356261358,1742152233773,-615.78283704,8.219e-05,2]
[356261359,1742152233783,-503.86209547,8.219e-05,2]
[356261360,1742152233793,-500.0,8.219e-05,2]
[356261361,1742152233802,-506.24232103,8.219e-05,2]
[356261362,1742152233813,-500.0,8.219e-05,2]
[356261363,1742152233823,-500.0,8.219e-05,2]
[356261364,1742152233832,-509.19249956,8.219e-05,2]
[356261365,1742152233843,-500.0,8.219e-05,2]
[356261366,1742152233852,-500.0,8.219e-05,2]
[356261367,1742152233862,-500.0,8.219e-05,2]
[356261368,1742152233872,-500.0,8.219e-05,2]
[356261369,1742152233881,-500.0,8.219e-05,2]
[356261370,1742152233891,-523.07699985,8.219e-05,2]
[356261371,1742152233900,-500.0,8.219e-05,2]
[356261372,1742152233910,-500.0,8.219e-05,2]
[356261373,1742152233920,-500.0,8.219e-05,2]
[356261374,1742152233931,-500.0,8.219e-05,2]
[356261375,1742152233941,-509.95771451,8.219e-05,2]
[356261376,1742152233951,-500.0,8.219e-05,2]
[356261377,1742152233961,-505.21729796,8.219e-05,2]
[356261378,1742152233971,-507.13848838,8.219e-05,2]
[356261379,1742152233981,-500.0,8.219e-05,2]
[356261380,1742152233991,-500.0,8.219e-05,2]
[356261381,1742152234001,-504.25975349,8.219e-05,2]
[356261382,1742152234010,-507.17324702,8.219e-05,2]
[356261383,1742152234020,-500.0,8.219e-05,2]
[356261384,1742152234030,-500.0,8.219e-05,2]
[356261385,1742152234040,-500.0,8.219e-05,2]
[356261386,1742152234049,-500.0,8.219e-05,2]
[356261387,1742152234059,-512.12584188,8.219e-05,2]
[356261388,1742152234068,-500.0,8.219e-05,2]
[356261389,1742152234078,-500.0,8.219e-05,2]
[356261390,1742152234088,-500.0,8.219e-05,2]
[356261391,1742152234097,-500.0,8.219e-05,2]
[356261392,1742152234107,-500.0,8.219e-05,2]
[356261393,1742152234116,-500.0,8.219e-05,2]
[356261394,1742152234126,-500.0,8.219e-05,2]
[356261395,1742152234136,-500.0,8.219e-05,2]
[356261396,1742152234146,-503.03567306,8.219e-05,2]